Workbook

Sheet Výpočetní program
B2: PROGRAM PRO STANOVENÍ STŘEDNÍ AERODYNAMICKÉ TĚTIVY KŘÍDLA OBECNÉHO PŮDORYSU
C5: Definujte typ křídla | F5: lichoběžník | H5: Zadejte půdorysný tvar vašeho křídla. V případě složeného křídla z více částí program předpokládá, že se "typ křídla" (jeho geometrické řazení) nemění. Předpokládá se pravoúhlý trojúhelník = delta křídlo)
H6: Možné vstupy: obdélník, lichoběžník, trojúhelník, elipsa
C8: Zadejte počet částí křídla P | F8: 2 | H8: Křídlo je buď jednoduché (neměnná geom.) nebo složené (proměnná geom.). Složené křídlo je nutné rozdělit na více jednoduchých subkřídel v místech, kde se geometrie mění viz. obrázek.
H9: Možné vstupy (počet subkřídel): 1, 2, 3 ,4
C11: Zadejte parametry křídla :
C13: Rozpětí 𝑙 | F13: 420 | H13: Změňte hodnotu 0 na vaši hodnotu.
C15: Hloubka u kořene křídla 𝑏0 | F15: 100 | H15: Změňte hodnotu 0 na vaši hodnotu.
C16: Hloubka subkřídla 𝑏1 | F16: 59.6 | H16: Změňte hodnotu 0 na vaši hodnotu. | K16: (zajedte 1E-30)
C17: Hloubka subkřídla 𝑏2 | F17: 35 | H17: Změňte hodnotu 0 na vaši hodnotu.
C18: Hloubka subkřídla 𝑏3 | F18: 0 | H18: Změňte hodnotu 0 na vaši hodnotu.
C19: Hloubka subkřídla 𝑏4 | F19: 0 | H19: Změňte hodnotu 0 na vaši hodnotu.
C21: Šípovitost -> vzdálenost nb1 | F21: 40.4 | H21: Změňte hodnotu 0 na vaši hodnotu. | K21: (je rovna b0)
C22: Šípovitost -> vzdálenost nb2 | F22: 113.11 | H22: Změňte hodnotu 0 na vaši hodnotu.
C23: Šípovitost -> vzdálenost nb3 | F23: 0 | H23: Změňte hodnotu 0 na vaši hodnotu.
C24: Šípovitost -> vzdálenost nb4 | F24: 0 | H24: Změňte hodnotu 0 na vaši hodnotu.
C26: Šípovitost -> vzdálenost zb1 | F26: 75 | H26: Změňte hodnotu 0 na vaši hodnotu. | K26: (je rovna l/2)
C27: Šípovitost -> vzdálenost zb2 | F27: 210 | H27: Změňte hodnotu 0 na vaši hodnotu.
C28: Šípovitost -> vzdálenost zb3 | F28: 0 | H28: Změňte hodnotu 0 na vaši hodnotu.
C29: Šípovitost -> vzdálenost zb4 | F29: 0 | H29: Změňte hodnotu 0 na vaši hodnotu.
C31: Vypočtená hodnota ploch subkřídel :
C33: Plocha křídla S1 | F33: =O42 -> 5985 | H33: Plocha křídla a plochy jeho částí pro kontrolu. viz. obrázek.
C34: Plocha křídla S2 | F34: =O43 -> 6385.5
C35: Plocha křídla S3 | F35: =O44 -> 0
C36: Plocha křídla S4 | F36: =O45 -> 0
C37: Plocha křídla S (celková) | F37: =_xlfn.IFS(F5="elipsa",PI()/4*F15*F13,SUM(F33:F36),SUM(F33:F36)) -> 12370.5
C39: VÝSLEDNÉ HODNOTY DEFINUJÍCÍ STŘEDNÍ AERODYNAMICKOU TĚTIVU
C41: Střední aerodynamická hloubka | F41: =_xlfn.IFS(F5="elipsa",8/(3*PI())*F15,(J42*F33+J43*F34+J44*F35+J45*F36)/(F33+F34+F35+F36),(J42*F33+J43*F34+J44*F35+J45*F36)/(F33+F34+F35+F36)) -> 64.39886828 | H41: Pole | I41: zúžení^-1 | J41: bSAT | K41: zSAT | L41: xSAT | M41: zSAT gl. | N41: xSAT gl. | O41: Plocha
C42: Poloha SAT na rozpětí | F42: =_xlfn.IFS(F5="elipsa",0.4244*F13/2,(M42*F33+M43*F34+M44*F35+M45*F36)/(F33+F34+F35+F36),(M42*F33+M43*F34+M44*F35+M45*F36)/(F33+F34+F35+F36)) -> 87.14866012 | H42: 1 | I42: =IFERROR(F16/F15,0) -> 0.596 | J42: =_xlfn.IFS(I42=0,0,(2/3)*F15*((1+I42+I42^2)/(1+I42)),(2/3)*F15*((1+I42+I42^2)/(1+I42))) -> 81.50442774 | K42: =_xlfn.IFS(I42=0,0,(2*F26)/6*(1+2*I42)/(1+I42),(2*F26)/6*(1+2*I42)/(1+I42)) -> 34.3358396 | L42: =IFERROR(K42/F26*F21,0) -> 18.49557226 | M42: =_xlfn.IFS(K42=0,0,K42,K42) -> 34.3358396 | N42: =_xlfn.IFS(L42=0,0,L42,L42) -> 18.49557226 | O42: =IFERROR(_xlfn.IFS(IFERROR(F15*(F26-F25)+((F16-F15)/2)*(F26-F25),0)<0,0),IFERROR(F15*(F26-F25)+((F16-F15)/2)*(F26-F25),0)) -> 5985
C43: Vzdálenost náběžné hrany | F43: =_xlfn.IFS(F5="elipsa","viz. Obr.1",F5="obdélník",0,(N42*F33+N43*F34+N44*F35+N45*F36)/(F33+F34+F35+F36),(N42*F33+N43*F34+N44*F35+N45*F36)/(F33+F34+F35+F36)) -> 46.94172103 | H43: 2 | I43: =IFERROR(F17/F16,0) -> 0.5872483221 | J43: =_xlfn.IFS(I43=0,0,(2/3)*F16*((1+I43+I43^2)/(1+I43)),(2/3)*F16*((1+I43+I43^2)/(1+I43))) -> 48.36617336 | K43: =_xlfn.IFS(I43=0,0,(2*F27-2*F26)/6*(1+2*I43)/(1+I43),(2*F27-2*F26)/6*(1+2*I43)/(1+I43)) -> 61.64904863 | L43: =IFERROR(K43/(F27-F26)*(F22-F21),0) -> 33.20372093 | M43: =_xlfn.IFS(K43=0,0,K43+F26,K43+F26) -> 136.6490486 | N43: =_xlfn.IFS(L43=0,0,L43+F21,L43+F21) -> 73.60372093 | O43: =IFERROR(_xlfn.IFS(IFERROR(F16*(F27-F26)+((F17-F16)/2)*(F27-F26),0)<0,0),IFERROR(F16*(F27-F26)+((F17-F16)/2)*(F27-F26),0)) -> 6385.5
H44: 3 | I44: =IFERROR(F18/F17,0) -> 0 | J44: =_xlfn.IFS(I44=0,0,(2/3)*F17*((1+I44+I44^2)/(1+I44)),(2/3)*F17*((1+I44+I44^2)/(1+I44))) -> 0 | K44: =_xlfn.IFS(I44=0,0,(2*F28-2*F27)/6*(1+2*I44)/(1+I44),(2*F28-2*F27)/6*(1+2*I44)/(1+I44)) -> 0 | L44: =IFERROR(K44/(F28-F27)*(F23-F22),0) -> 0 | M44: =_xlfn.IFS(K44=0,0,K44+F27,K44+F27) -> 0 | N44: =_xlfn.IFS(L44=0,0,L44+F22,L44+F22) -> 0 | O44: =IFERROR(_xlfn.IFS(IFERROR(F17*(F28-F27)+((F18-F17)/2)*(F28-F27),0)<0,0),IFERROR(F17*(F28-F27)+((F18-F17)/2)*(F28-F27),0)) -> 0
C45: Zobrazit mezivýpočty? (zadejte "ano") | F45: ano | H45: 4 | I45: =IFERROR(F19/F18,0) -> 0 | J45: =_xlfn.IFS(I45=0,0,(2/3)*F18*((1+I45+I45^2)/(1+I45)),(2/3)*F18*((1+I45+I45^2)/(1+I45))) -> 0 | K45: =_xlfn.IFS(I45=0,0,(2*F29-2*F28)/6*(1+2*I45)/(1+I45),(2*F29-2*F28)/6*(1+2*I45)/(1+I45)) -> 0 | L45: =IFERROR(K45/(F29-F28)*(F24-F23),0) -> 0 | M45: =_xlfn.IFS(K45=0,0,K45+F28,K45+F28) -> 0 | N45: =_xlfn.IFS(L45=0,0,L45+F23,L45+F23) -> 0 | O45: =IFERROR(_xlfn.IFS(IFERROR(F18*(F29-F28)+((F19-F18)/2)*(F29-F28),0)<0,0),IFERROR(F18*(F29-F28)+((F19-F18)/2)*(F29-F28),0)) -> 0
C46: (nezobrazuje pro elipsu)

Sheet Obecná metoda
B2: PROGRAM PRO STANOVENÍ STŘEDNÍ AERODYNAMICKÉ TĚTIVY KŘÍDLA OBECNÉHO PŮDORYSU
C5: SOUŘADNICE KŘÍDLA | G5: PLOŠNÉ ROZDĚLENÍ | J5: MEZIVÝPOČET
C6: z | D6: x1 | E6: x2 | G6: z | H6: x=x1-x2 | J6: Hloubka b(x) | K6: chyba
C7: 0 | D7: 0 | E7: 100 | G7: =IF(COUNT(C7)=1,C7,#N/A) -> 0 | H7: =IF(COUNT(D7:E7)=2,ABS(D7-E7),#N/A) -> 100 | J7: =-3.15129887387666E-12*G7^6 + 3.2808723217587E-09*G7^5 - 1.19622988882517E-06*G7^4 + 0.000188816450149787*G7^3 - 0.0110035490609448*G7^2 - 0.337735514676751*G7 + 99.5390387932748 -> 99.53903879 | K7: =IFERROR(ABS((H7-J7)/J7),"") -> 0.004630958992 | M7: KONTROLA POUŽITÉ REGRESE | S7: -0,000000000003151298873876660000*G7^6 + 0,000000003280872321758700000000*G7^5 - 0,000001196229888825170000000000*G7^4 + 0,000188816450149787000000000000*G7^3 - 0,011003549060944800000000000000*G7^2 - 0,337735514676751000000000000000*G7 + 99,539038793274800000000000000000
C8: 9.375 | D8: 5.049571809 | E8: 100 | G8: =IF(COUNT(C8)=1,C8,#N/A) -> 9.375 | H8: =IF(COUNT(D8:E8)=2,ABS(D8-E8),#N/A) -> 94.95042819 | J8: =-3.15129887387666E-12*G8^6 + 3.2808723217587E-09*G8^5 - 1.19622988882517E-06*G8^4 + 0.000188816450149787*G8^3 - 0.0110035490609448*G8^2 - 0.337735514676751*G8 + 99.5390387932748 -> 95.55223437 | K8: =IFERROR(ABS((H8-J8)/J8),"") -> 0.006298190531
C9: 18.75 | D9: 10.09914362 | E9: 100 | G9: 18.75 | H9: 89.90085638 | J9: 90.44231916 | K9: 0.005986829893 | M9: Do bílého pole zadejte maximální procentuální chybu regrese, kterou jste ochotni připustit.
C10: 28.125 | D10: 15.14871543 | E10: 100 | G10: 28.125 | H10: 84.85128457 | J10: 84.84459625 | K10: 7.883023483e-05
C11: 37.5 | D11: 20.19828724 | E11: 100 | G11: 37.5 | H11: 79.80171276 | J11: 79.22628078 | K11: 0.007263145193
C12: 46.875 | D12: 25.24785905 | E12: 100 | G12: 46.875 | H12: 74.75214095 | J12: 73.91116076 | K12: 0.01137825718 | M12: Tolerovaná hodnota chyby | O12: 0.03
C13: 56.25 | D13: 30.29743085 | E13: 100 | G13: 56.25 | H13: 69.70256915 | J13: 69.10271741 | K13: 0.008680581033 | M13: Maximální dosažená chyba | O13: =MAX(K7:K27) -> 0.02840869294
C14: 65.625 | D14: 35.34700266 | E14: 100 | G14: 65.625 | H14: 64.65299734 | J14: 64.90570507 | K14: 0.003893459429
C15: 75 | D15: 40.39657447 | E15: 100 | G15: 75 | H15: 59.60342553 | J15: 61.34619062 | K15: 0.02840869294 | M15: =_xlfn.IFS(O13<O12,"Použili jste vhodnou regresi, výpočet dosahuje maximálně vámi tolerovanou chybu.",O13>O12,"Nepřesný výsledek. Změňte řád polynomu regrese nebo vytvořte hustší síť souřadnic definujících profil křídla.",O13=O12,"Použili jste vhodnou regresi, výpočet dosahuje maximálně vámi tolerovanou chybu.") -> Použili jste vhodnou regresi, výpočet dosahuje maximálně vámi tolerovanou chybu.
C16: 84 | D16: 45.24416341 | E16: 103.2073606 | G16: 84 | H16: 57.96319716 | J16: 58.49757327 | K16: 0.009135013264
C17: 93 | D17: 50.09175235 | E17: 106.4147211 | G17: 93 | H17: 56.32296879 | J17: 56.13734394 | K17: 0.003306619845
C18: 102 | D18: 54.93934128 | E18: 109.6220817 | G18: 102 | H18: 54.68274042 | J18: 54.17345617 | K18: 0.009400992381
C19: 111 | D19: 59.78693022 | E19: 112.8294423 | G19: 111 | H19: 53.04251205 | J19: 52.50115079 | K19: 0.01031141719
C20: 120 | D20: 64.63451916 | E20: 116.0368028 | G20: 120 | H20: 51.40228369 | J20: 51.01314081 | K20: 0.007628286992 | M20: VÝPOČET STŘEDNÍ AERODYNAMICKÉ HLOUBKY bSAT
C21: 129 | D21: 69.48210809 | E21: 119.2441634 | G21: 129 | H21: 49.76205532 | J21: 49.60859068 | K21: 0.003093509284
C22: 138 | D22: 74.32969703 | E22: 122.451524 | G22: 138 | H22: 48.12182695 | J22: 48.20088962 | K22: 0.001640274191
C23: 147 | D23: 79.17728597 | E23: 125.6588845 | G23: 147 | H23: 46.48159858 | J23: 46.72421919 | K23: 0.005192609129
C24: 156 | D24: 84.0248749 | E24: 128.8662451 | G24: 156 | H24: 44.84137021 | J24: 45.13891502 | K24: 0.006591758027
C25: 165 | D25: 88.87246384 | E25: 132.0736057 | G25: 165 | H25: 43.20114184 | J25: 43.4356228 | K25: 0.005398356147
C26: 174 | D26: 93.72005278 | E26: 135.2809662 | G26: 174 | H26: 41.56091347 | J26: 41.63824843 | K26: 0.001857305762 | O26: =-3.15129887387666E-12*Z1^6 + 3.2808723217587E-09*Z1^5 - 1.19622988882517E-06*Z1^4 + 0.000188816450149787*Z1^3 - 0.0110035490609448*Z1^2 - 0.337735514676751*Z1 + 99.5390387932748 -> 99.53903879 | S26: -0,000000000003151298873876660000*z1^6 + 0,000000003280872321758700000000*z1^5 - 0,000001196229888825170000000000*z1^4 + 0,000188816450149787000000000000*z1^3 - 0,011003549060944800000000000000*z1^2 - 0,337735514676751000000000000000*z1 + 99,539038793274800000000000000000
C27: 183 | D27: 98.56764171 | E27: 138.4883268 | G27: 183 | H27: 39.92068511 | J27: 39.80570232 | K27: 0.002888600823
C28: 192 | D28: 103.4152306 | E28: 141.6956874 | G28: 192 | H28: 38.28045674 | J28: 38.03243796 | K28: 0.006521243256 | O28: =-1.270549421E-21*Z1^6 - 3.25260651746E-19*Z1^5 + 1.38777878078145E-16*Z1^4 - 8.17124146124115E-14*Z1^3 - 4.54747350886464E-13*Z1^2 + 0.538620996841928*Z1 - 3.41635313816369E-07 -> -3.416353138e-07 | S28: -0,000000000000000000001270549421*z1^6 - 0,000000000000000000325260651746*z1^5 + 0,000000000000000138777878078145*z1^4 - 0,000000000000081712414612411500*z1^3 - 0,000000000000454747350886464000*z1^2 + 0,538620996841928000000000000000*z1 - 0,000000341635313816369000000000
C29: 201 | D29: 108.2628196 | E29: 144.903048 | G29: 201 | H29: 36.64022837 | J29: 36.44778463 | K29: 0.005279984432 | S29: -0,000000000000000000001270549421*G7^6 - 0,000000000000000000325260651746*G7^5 + 0,000000000000000138777878078145*G7^4 - 0,000000000000081712414612411500*G7^3 - 0,000000000000454747350886464000*G7^2 + 0,538620996841928000000000000000*G7 - 0,000000341635313816369000000000
C30: 210 | D30: 113.1104085 | E30: 148.1104085 | G30: 210 | H30: 35 | J30: 35.21407437 | K30: 0.006079227442 | L30: NEMÁTE K DISPOZICI FUNKCI QADF(), PŘEJDĚTE NA LIST "INTEGRACE".
M32: Horní mez integrálů (= polovině rozpětí) | O32: =MAX(C7:C121) -> 210
M33: Plocha křídla (získaná integrací b(z)) | O33: =QUADF(O26,Z1,0,O32) -> 
M35: Střední aerodynamická hloubka | O35: =IFERROR(2/O33*O41/2, "list Integrace") -> list Integrace
M36: Poloha SAT na rozpětí | O36: =IFERROR(2/O33*O42/2,"list Integrace") -> list Integrace
M37: Vzdálenost náběžné hrany | O37: =IFERROR(2/O33*O43/2,"list Integrace") -> list Integrace
M39: Zobrazit mezivýpočty? (vepište "ano") | O39: ano
M41: Integrál z b(z)^2 | O41: =QUADF(O26^2,Z1,0,O32) -> 
M42: Integrál z b(z)*z | O42: =QUADF(O26*Z1,Z1,0,O32) -> 
M43: Integrál z b(z)*x(z) | O43: =QUADF(O26*O28,Z1,0,O32) -> 
G72: =IF(COUNT(C72)=1,C72,#N/A) ->  | H72: =IF(COUNT(D72:E72)=2,ABS(D72-E72),#N/A) -> 
K73: =IFERROR(ABS((H73-J73)/J73),"") -> 
G136: =IF(COUNT(C136)=1,C136,#N/A) ->  | H136: =IF(COUNT(D136:E136)=2,ABS(D136-E136),#N/A) -> 
K137: =IFERROR(ABS((H137-J137)/J137),"") -> 
G200: =IF(COUNT(C200)=1,C200,#N/A) ->  | H200: =IF(COUNT(D200:E200)=2,ABS(D200-E200),#N/A) -> 
K201: =IFERROR(ABS((H201-J201)/J201),"") -> 
G264: =IF(COUNT(C264)=1,C264,#N/A) ->  | H264: =IF(COUNT(D264:E264)=2,ABS(D264-E264),#N/A) -> 
K265: =IFERROR(ABS((H265-J265)/J265),"") -> 
G328: =IF(COUNT(C328)=1,C328,#N/A) ->  | H328: =IF(COUNT(D328:E328)=2,ABS(D328-E328),#N/A) -> 
K329: =IFERROR(ABS((H329-J329)/J329),"") -> 
G392: =IF(COUNT(C392)=1,C392,#N/A) ->  | H392: =IF(COUNT(D392:E392)=2,ABS(D392-E392),#N/A) -> 
K393: =IFERROR(ABS((H393-J393)/J393),"") -> 
G456: =IF(COUNT(C456)=1,C456,#N/A) ->  | H456: =IF(COUNT(D456:E456)=2,ABS(D456-E456),#N/A) -> 
K457: =IFERROR(ABS((H457-J457)/J457),"") -> 
G520: =IF(COUNT(C520)=1,C520,#N/A) ->  | H520: =IF(COUNT(D520:E520)=2,ABS(D520-E520),#N/A) -> 
K521: =IFERROR(ABS((H521-J521)/J521),"") -> 
G584: =IF(COUNT(C584)=1,C584,#N/A) ->  | H584: =IF(COUNT(D584:E584)=2,ABS(D584-E584),#N/A) -> 
K585: =IFERROR(ABS((H585-J585)/J585),"") -> 
G648: =IF(COUNT(C648)=1,C648,#N/A) ->  | H648: =IF(COUNT(D648:E648)=2,ABS(D648-E648),#N/A) -> 
K649: =IFERROR(ABS((H649-J649)/J649),"") -> 
G712: =IF(COUNT(C712)=1,C712,#N/A) ->  | H712: =IF(COUNT(D712:E712)=2,ABS(D712-E712),#N/A) -> 
K713: =IFERROR(ABS((H713-J713)/J713),"") -> 
G776: =IF(COUNT(C776)=1,C776,#N/A) ->  | H776: =IF(COUNT(D776:E776)=2,ABS(D776-E776),#N/A) -> 
K777: =IFERROR(ABS((H777-J777)/J777),"") -> 
G840: =IF(COUNT(C840)=1,C840,#N/A) ->  | H840: =IF(COUNT(D840:E840)=2,ABS(D840-E840),#N/A) -> 
K841: =IFERROR(ABS((H841-J841)/J841),"") -> 
G904: =IF(COUNT(C904)=1,C904,#N/A) ->  | H904: =IF(COUNT(D904:E904)=2,ABS(D904-E904),#N/A) -> 
K905: =IFERROR(ABS((H905-J905)/J905),"") -> 
G968: =IF(COUNT(C968)=1,C968,#N/A) ->  | H968: =IF(COUNT(D968:E968)=2,ABS(D968-E968),#N/A) -> 
K969: =IFERROR(ABS((H969-J969)/J969),"") -> 
G1032: =IF(COUNT(C1032)=1,C1032,#N/A) ->  | H1032: =IF(COUNT(D1032:E1032)=2,ABS(D1032-E1032),#N/A) -> 
K1033: =IFERROR(ABS((H1033-J1033)/J1033),"") -> 
G1096: =IF(COUNT(C1096)=1,C1096,#N/A) ->  | H1096: =IF(COUNT(D1096:E1096)=2,ABS(D1096-E1096),#N/A) -> 
K1097: =IFERROR(ABS((H1097-J1097)/J1097),"") -> 
G1160: =IF(COUNT(C1160)=1,C1160,#N/A) ->  | H1160: =IF(COUNT(D1160:E1160)=2,ABS(D1160-E1160),#N/A) -> 
K1161: =IFERROR(ABS((H1161-J1161)/J1161),"") -> 
G1224: =IF(COUNT(C1224)=1,C1224,#N/A) ->  | H1224: =IF(COUNT(D1224:E1224)=2,ABS(D1224-E1224),#N/A) -> 
K1225: =IFERROR(ABS((H1225-J1225)/J1225),"") -> 
G1288: =IF(COUNT(C1288)=1,C1288,#N/A) ->  | H1288: =IF(COUNT(D1288:E1288)=2,ABS(D1288-E1288),#N/A) -> 
K1289: =IFERROR(ABS((H1289-J1289)/J1289),"") -> 
G1352: =IF(COUNT(C1352)=1,C1352,#N/A) ->  | H1352: =IF(COUNT(D1352:E1352)=2,ABS(D1352-E1352),#N/A) -> 
K1353: =IFERROR(ABS((H1353-J1353)/J1353),"") -> 
G1416: =IF(COUNT(C1416)=1,C1416,#N/A) ->  | H1416: =IF(COUNT(D1416:E1416)=2,ABS(D1416-E1416),#N/A) -> 
K1417: =IFERROR(ABS((H1417-J1417)/J1417),"") -> 
G1480: =IF(COUNT(C1480)=1,C1480,#N/A) ->  | H1480: =IF(COUNT(D1480:E1480)=2,ABS(D1480-E1480),#N/A) -> 
K1481: =IFERROR(ABS((H1481-J1481)/J1481),"") -> 
G1544: =IF(COUNT(C1544)=1,C1544,#N/A) ->  | H1544: =IF(COUNT(D1544:E1544)=2,ABS(D1544-E1544),#N/A) -> 
K1545: =IFERROR(ABS((H1545-J1545)/J1545),"") -> 
G1608: =IF(COUNT(C1608)=1,C1608,#N/A) ->  | H1608: =IF(COUNT(D1608:E1608)=2,ABS(D1608-E1608),#N/A) -> 
K1609: =IFERROR(ABS((H1609-J1609)/J1609),"") -> 
G1672: =IF(COUNT(C1672)=1,C1672,#N/A) ->  | H1672: =IF(COUNT(D1672:E1672)=2,ABS(D1672-E1672),#N/A) -> 
K1673: =IFERROR(ABS((H1673-J1673)/J1673),"") -> 
G1736: =IF(COUNT(C1736)=1,C1736,#N/A) ->  | H1736: =IF(COUNT(D1736:E1736)=2,ABS(D1736-E1736),#N/A) -> 
K1737: =IFERROR(ABS((H1737-J1737)/J1737),"") -> 
G1800: =IF(COUNT(C1800)=1,C1800,#N/A) ->  | H1800: =IF(COUNT(D1800:E1800)=2,ABS(D1800-E1800),#N/A) -> 
K1801: =IFERROR(ABS((H1801-J1801)/J1801),"") -> 
G1864: =IF(COUNT(C1864)=1,C1864,#N/A) ->  | H1864: =IF(COUNT(D1864:E1864)=2,ABS(D1864-E1864),#N/A) -> 
K1865: =IFERROR(ABS((H1865-J1865)/J1865),"") -> 
G1928: =IF(COUNT(C1928)=1,C1928,#N/A) ->  | H1928: =IF(COUNT(D1928:E1928)=2,ABS(D1928-E1928),#N/A) -> 
K1929: =IFERROR(ABS((H1929-J1929)/J1929),"") -> 
G1992: =IF(COUNT(C1992)=1,C1992,#N/A) ->  | H1992: =IF(COUNT(D1992:E1992)=2,ABS(D1992-E1992),#N/A) -> 
K1993: =IFERROR(ABS((H1993-J1993)/J1993),"") -> 

Sheet Integrace
B2: ALTERNATIVNÍ VÝPOČET INTEGRÁLŮ PRO ZÍSKÁNÍ STŘEDNÍ AERODYNAMICKÉ TĚTIVY
G4: dz | H4: b(z) | I4: b(z)^2 | J4: b(z)*z | K4: x(z) | L4: b(z)*x(z) | M4: nosná plocha | N4: bsat' | O4: zsat' | P4: xsat'
G5: 1 | R5: VÝSLEDNÉ HODNOTY
G7: 0 | H7: =-3.15129887387666E-12*G7^6 + 3.2808723217587E-09*G7^5 - 1.19622988882517E-06*G7^4 + 0.000188816450149787*G7^3 - 0.0110035490609448*G7^2 - 0.337735514676751*G7 + 99.5390387932748 -> 99.53903879 | I7: =H7^2 -> 9908.020244 | J7: =H7*G7 -> 0 | K7: =-1.270549421E-21*G7^6 - 3.25260651746E-19*G7^5 + 1.38777878078145E-16*G7^4 - 8.17124146124115E-14*G7^3 - 4.54747350886464E-13*G7^2 + 0.538620996841928*G7 - 3.41635313816369E-07 -> -3.416353138e-07 | L7: =H7*K7 -> -3.400605076e-05 | M7: 0 | N7: 0 | O7: 0 | P7: 0 | R7: Střední aerodynamická hloubka | T7: =2/MAX(M7:M2007)*(MAX(N7:N2007)-N7)/2 -> 64.42293931
G8: =G7+G$5 -> 1 | H8: =-3.15129887387666E-12*G8^6 + 3.2808723217587E-09*G8^5 - 1.19622988882517E-06*G8^4 + 0.000188816450149787*G8^3 - 0.0110035490609448*G8^2 - 0.337735514676751*G8 + 99.5390387932748 -> 99.19048735 | I8: =H8^2 -> 9838.752781 | J8: =H8*G8 -> 99.19048735 | K8: =-1.270549421E-21*G8^6 - 3.25260651746E-19*G8^5 + 1.38777878078145E-16*G8^4 - 8.17124146124115E-14*G8^3 - 4.54747350886464E-13*G8^2 + 0.538620996841928*G8 - 3.41635313816369E-07 -> 0.5386206552 | L8: =H8*K8 -> 53.42604529 | M8: =M7+0.5*(H8+H7)*G$5 -> 99.36476307 | N8: =N7+0.5*(I8+I7)*G$5 -> 9873.386513 | O8: =O7+0.5*(J8+J7)*G$5 -> 49.59524368 | P8: =P7+0.5*(L8+L7)*G$5 -> 26.71300564 | R8: Poloha SAT na rozpětí | T8: =2/MAX(M7:M2007)*(MAX(O7:O2007)-O7)/2 -> 87.11105856
G9: =G8+G$5 -> 2 | H9: 98.82104506 | I9: 9765.598948 | J9: 197.6420901 | K9: 1.077241652 | L9: 106.4541458 | M9: =M8+0.5*(H9+H8)*G$5 -> 198.3705293 | N9: =N8+0.5*(I9+I8)*G$5 -> 19675.56238 | O9: =O8+0.5*(J9+J8)*G$5 -> 198.0115324 | P9: =P8+0.5*(L9+L8)*G$5 -> 106.6531012 | R9: Vzdálenost náběžné hrany | T9: =2/MAX(M7:M2007)*(MAX(P7:P2007)-P7)/2 -> 46.91984473
G10: 3 | H10: 98.43180225 | I10: 9688.819695 | J10: 295.2954068 | K10: 1.615862649 | L10: 159.0522727 | M10: 296.9969529 | N10: 29402.7717 | O10: 444.4802809 | P10: 239.4063105
G11: 4 | H11: 98.02382131 | I11: 9608.669545 | J11: 392.0952853 | K11: 2.154483646 | L11: 211.1907199 | M11: 395.2247647 | N11: 39051.51632 | O11: 788.1756269 | P11: 424.5278068
G12: 5 | H12: 97.59813711 | I12: 9525.396367 | J12: 487.9906855 | K12: 2.693104643 | L12: 262.8419962 | M12: 493.0357439 | N12: 48618.54927 | O12: 1228.218612 | P12: 661.5441648
G13: 6 | H13: 97.15575734 | I13: 9439.241185 | J13: 582.9345441 | K13: 3.231725639 | L13: 313.980752 | M13: 590.4126912 | N13: 58100.86805 | O13: 1763.681227 | P13: 949.9555389
G14: 7 | H14: 96.69766295 | I14: 9350.43802 | J14: 676.8836407 | K14: 3.770346636 | L14: 364.5837082 | M14: 687.3394013 | N14: 67495.70765 | O14: 2393.590319 | P14: 1289.237769 | AE14: F(z)
G15: 8 | H15: 96.22480848 | I15: 9259.213767 | J15: 769.7984679 | K15: 4.308967633 | L15: 414.6295852 | M15: 783.800637 | N15: 76800.53355 | O15: 3116.931374 | P15: 1678.844416
G16: 9 | H16: 95.73812247 | I16: 9165.788095 | J16: 861.6431023 | K16: 4.84758863 | L16: 464.0990339 | M16: 879.7821025 | N16: 86013.03448 | O16: 3932.652159 | P16: 2118.208725 | AE16: F(0)
G17: 10 | H17: 95.23850783 | I17: 9070.373373 | J17: 952.3850783 | K17: 5.386209627 | L17: 512.9745677 | M17: 975.2704177 | N17: 95131.11521 | O17: 4839.666249 | P17: 2606.745526 | AE17: F(0)+0,5*(f(0)+F(0))*k
G18: 11 | H18: 94.72684219 | I18: 8973.174632 | J18: 1041.995264 | K18: 5.924830623 | L18: 561.2404955 | M18: 1070.253093 | N18: 104152.8892 | O18: 5836.85642 | P18: 3143.853058
G19: 12 | H19: 94.20397833 | I19: 8874.389533 | J19: 1130.44774 | K19: 6.46345162 | L19: 608.8828564 | M19: 1164.718503 | N19: 113076.6713 | O19: 6923.077922 | P19: 3728.914734
G20: 13 | H20: 93.67074448 | I20: 8774.208372 | J20: 1217.719678 | K20: 7.002072617 | L20: 655.889355 | M20: 1258.655864 | N20: 121900.9703 | O20: 8097.161631 | P20: 4361.300839
G21: 14 | H21: 93.12794475 | I21: 8672.814093 | J21: 1303.791226 | K21: 7.540693614 | L21: 702.2492982 | M21: 1352.055209 | N21: 130624.4815 | O21: 9357.917084 | P21: 5040.370166
G22: 15 | H22: 92.57635943 | I22: 8570.382326 | J22: 1388.645391 | K22: 8.079314611 | L22: 747.9535334 | M22: 1444.907361 | N22: 139246.0797 | O22: 10704.13539 | P22: 5765.471582
G23: 16 | H23: 92.01674543 | I23: 8467.08144 | J23: 1472.267927 | K23: 8.617935607 | L23: 792.9943869 | M23: 1537.203913 | N23: 147764.8116 | O23: 12134.59205 | P23: 6535.945542
G24: 17 | H24: 91.44983657 | I24: 8363.072609 | J24: 1554.647222 | K24: 9.156556604 | L24: 837.365605 | M24: 1628.937204 | N24: 156179.8886 | O24: 13648.04963 | P24: 7351.125538
G25: 18 | H25: 90.87634399 | I25: 8258.509897 | J25: 1635.774192 | K25: 9.695177601 | L25: 881.0622947 | M25: 1720.100295 | N25: 164490.6799 | O25: 15243.26033 | P25: 8210.339488
G26: 19 | H26: 90.29695647 | I26: 8153.540348 | J26: 1715.642173 | K26: 10.2337986 | L26: 924.0808665 | M26: 1810.686945 | N26: 172696.705 | O26: 16918.96852 | P26: 9112.911068
G27: 20 | H27: 89.7123408 | I27: 8048.304092 | J27: 1794.246816 | K27: 10.77241959 | L27: 966.4189779 | M27: 1900.691594 | N27: 180797.6272 | O27: 18673.91301 | P27: 10058.16099
G28: 21 | H28: 89.12314215 | I28: 7942.934466 | J28: 1871.585985 | K28: 11.31104059 | L28: 1008.075478 | M28: 1990.109335 | N28: 188793.2465 | O28: 20506.82941 | P28: 11045.40822
G29: 22 | H29: 88.52998437 | I29: 7837.558133 | J29: 1947.659656 | K29: 11.84966159 | L29: 1049.050355 | M29: 2078.935898 | N29: 196683.4928 | O29: 22416.45223 | P29: 12073.97114
G30: 23 | H30: 87.9334704 | I30: 7732.295216 | J30: 2022.469819 | K30: 12.38828258 | L30: 1089.34468 | M30: 2167.167626 | N30: 204468.4194 | O30: 24401.51697 | P30: 13143.16865
G31: 24 | H31: 87.33418255 | I31: 7627.259442 | J31: 2096.020381 | K31: 12.92690358 | L31: 1128.960557 | M31: 2254.801452 | N31: 212148.1968 | O31: 26460.76207 | P31: 14252.32127
G32: 25 | H32: 86.73268291 | I32: 7522.558284 | J32: 2168.317073 | K32: 13.46552458 | L32: 1167.901073 | M32: 2341.834885 | N32: 219723.1056 | O32: 28592.9308 | P32: 15400.75209
G33: 26 | H33: 86.12951362 | I33: 7418.293116 | J33: 2239.367354 | K33: 14.00414557 | L33: 1206.170247 | M33: 2428.265983 | N33: 227193.5313 | O33: 30796.77301 | P33: 16587.78775
G34: 27 | H34: 85.52519727 | I34: 7314.559367 | J34: 2309.180326 | K34: 14.54276657 | L34: 1243.77298 | M34: 2514.093339 | N34: 234559.9576 | O34: 33071.04685 | P34: 17812.75936
G35: 28 | H35: 84.92023719 | I35: 7211.446685 | J35: 2377.766641 | K35: 15.08138757 | L35: 1280.715009 | M35: 2599.316056 | N35: 241822.9606 | O35: 35414.52033 | P35: 19075.00336
G36: 29 | H36: 84.31511783 | I36: 7109.039095 | J36: 2445.138417 | K36: 15.62000856 | L36: 1317.002863 | M36: 2683.933733 | N36: 248983.2035 | O36: 37825.97286 | P36: 20373.86229
G37: 30 | H37: 83.71030504 | I37: 7007.41517 | J37: 2511.309151 | K37: 16.15862956 | L37: 1352.64381 | M37: 2767.946445 | N37: 256041.4306 | O37: 40304.19665 | P37: 21708.68563
G38: 31 | H38: 83.10624643 | I38: 6906.648196 | J38: 2576.293639 | K38: 16.69725056 | L38: 1387.64582 | M38: 2851.354721 | N38: 262998.4623 | O38: 42847.99804 | P38: 23078.83044
G39: 32 | H39: 82.5033717 | I39: 6806.806341 | J39: 2640.107894 | K39: 17.23587155 | L39: 1422.017517 | M39: 2934.15953 | N39: 269855.1896 | O39: 45456.19881 | P39: 24483.66211
G40: 33 | H40: 81.90209293 | I40: 6707.952826 | J40: 2702.769067 | K40: 17.77449255 | L40: 1455.768141 | M40: 3016.362262 | N40: 276612.5692 | O40: 48127.63729 | P40: 25922.55494
G41: 34 | H41: 81.30280496 | I41: 6610.146094 | J41: 2764.295369 | K41: 18.31311355 | L41: 1488.907499 | M41: 3097.964711 | N41: 283271.6186 | O41: 50861.16951 | P41: 27394.89276
G42: 35 | H42: 80.70588564 | I42: 6513.439978 | J42: 2824.705998 | K42: 18.85173454 | L42: 1521.445932 | M42: 3178.969056 | N42: 289833.4117 | O42: 53655.67019 | P42: 28900.06947
G43: 36 | H43: 80.11169623 | I43: 6417.883873 | J43: 2884.021064 | K43: 19.39035554 | L43: 1553.394273 | M43: 3259.377847 | N43: 296299.0736 | O43: 56510.03372 | P43: 30437.48958
G44: 37 | H44: 79.52058163 | I44: 6323.522903 | J44: 2942.26152 | K44: 19.92897654 | L44: 1584.763805 | M44: 3339.193986 | N44: 302669.777 | O44: 59423.17501 | P44: 32006.56862
G45: 38 | H45: 78.93287075 | I45: 6230.398085 | J45: 2999.449088 | K45: 20.46759753 | L45: 1615.566231 | M45: 3418.420712 | N45: 308946.7375 | O45: 62394.03032 | P45: 33606.73363
G46: 39 | H46: 78.3488768 | I46: 6138.546496 | J46: 3055.606195 | K46: 21.00621853 | L46: 1645.813628 | M46: 3497.061586 | N46: 315131.2098 | O46: 65421.55796 | P46: 35237.42356
G47: 40 | H47: 77.76889761 | I47: 6048.001435 | J47: 3110.755904 | K47: 21.54483953 | L47: 1675.518419 | M47: 3575.120473 | N47: 321224.4837 | O47: 68504.73901 | P47: 36898.08959
G48: 41 | H48: 77.19321592 | I48: 5958.792584 | J48: 3164.921853 | K48: 22.08346052 | L48: 1704.693336 | M48: 3652.60153 | N48: 327227.8807 | O48: 71642.57789 | P48: 38588.19546
G49: 42 | H49: 76.6220997 | I49: 5870.946162 | J49: 3218.128187 | K49: 22.62208152 | L49: 1733.351386 | M49: 3729.509188 | N49: 333142.7501 | O49: 74834.10291 | P49: 40307.21783
G50: 43 | H50: 76.05580244 | I50: 5784.485084 | J50: 3270.399505 | K50: 23.16070252 | L50: 1761.505815 | M50: 3805.848139 | N50: 338970.4657 | O50: 78078.36675 | P50: 42054.64643
G51: 44 | H51: 75.49456345 | I51: 5699.429111 | J51: 3321.760792 | K51: 23.69932351 | L51: 1789.170083 | M51: 3881.623322 | N51: 344712.4228 | O51: 81374.4469 | P51: 43829.98437
G52: 45 | H52: 74.93860819 | I52: 5615.794997 | J52: 3372.237368 | K52: 24.23794451 | L52: 1816.357827 | M52: 3956.839908 | N52: 350370.0349 | O52: 84721.44598 | P52: 45632.74833
G53: 46 | H53: 74.38814849 | I53: 5533.596636 | J53: 3421.854831 | K53: 24.7765655 | L53: 1843.082834 | M53: 4031.503286 | N53: 355944.7307 | O53: 88118.49208 | P53: 47462.46866
G54: 47 | H54: 73.84338293 | I54: 5452.845202 | J54: 3470.638998 | K54: 25.3151865 | L54: 1869.359011 | M54: 4105.619052 | N54: 361437.9516 | O54: 91564.739 | P54: 49318.68958
G55: 48 | H55: 73.30449707 | I55: 5373.54929 | J55: 3518.615859 | K55: 25.8538075 | L55: 1895.200356 | M55: 4179.192992 | N55: 366851.1489 | O55: 95059.36642 | P55: 51200.96927
G56: 49 | H56: 72.77166376 | I56: 5295.715046 | J56: 3565.811524 | K56: 26.39242849 | L56: 1920.620932 | M56: 4252.231072 | N56: 372185.781 | O56: 98601.58012 | P56: 53108.87991
G57: 50 | H57: 72.24504343 | I57: 5219.3463 | J57: 3612.252171 | K57: 26.93104949 | L57: 1945.63484 | M57: 4324.739426 | N57: 377443.3117 | O57: 102190.612 | P57: 55042.0078
G58: 51 | H58: 71.72478436 | I58: 5144.444692 | J58: 3657.964002 | K58: 27.46967049 | L58: 1970.256192 | M58: 4396.72434 | N58: 382625.2072 | O58: 105825.7201 | P58: 56999.95331
G59: 52 | H59: 71.21102298 | I59: 5071.009794 | J59: 3702.973195 | K59: 28.00829148 | L59: 1994.499088 | M59: 4468.192243 | N59: 387732.9344 | O59: 109506.1886 | P59: 58982.33095
G60: 53 | H60: 70.70388413 | I60: 4999.039232 | J60: 3747.305859 | K60: 28.54691248 | L60: 2018.377592 | M60: 4539.149697 | N60: 392767.959 | O60: 113231.3282 | P60: 60988.76929
G61: 54 | H61: 70.20348135 | I61: 4928.528794 | J61: 3790.987993 | K61: 29.08553347 | L61: 2041.905707 | M61: 4609.60338 | N61: 397731.743 | O61: 117000.4751 | P61: 63018.91094
G62: 55 | H62: 69.70991715 | I62: 4859.472549 | J62: 3834.045443 | K62: 29.62415447 | L62: 2065.097354 | M62: 4679.560079 | N62: 402625.7436 | O62: 120812.9918 | P62: 65072.41247
G63: 56 | H63: 69.22328327 | I63: 4791.862946 | J63: 3876.503863 | K63: 30.16277547 | L63: 2087.96635 | M63: 4749.026679 | N63: 407451.4114 | O63: 124668.2665 | P63: 67148.94432
G64: 57 | H64: 68.74366097 | I64: 4725.690923 | J64: 3918.388675 | K64: 30.70139646 | L64: 2110.52639 | M64: 4818.010151 | N64: 412210.1883 | O64: 128565.7127 | P64: 69248.19069
G65: 58 | H65: 68.2711213 | I65: 4660.946003 | J65: 3959.725035 | K65: 31.24001746 | L65: 2132.791021 | M65: 4886.517542 | N65: 416903.5068 | O65: 132504.7696 | P65: 71369.8494
G66: 59 | H66: 67.80572534 | I66: 4597.616388 | J66: 4000.537795 | K66: 31.77863846 | L66: 2154.773631 | M66: 4954.555966 | N66: 421532.788 | O66: 136484.901 | P66: 73513.63173
G67: 60 | H67: 67.34752448 | I67: 4535.689054 | J67: 4040.851469 | K67: 32.31725945 | L67: 2176.487422 | M67: 5022.13259 | N67: 426099.4407 | O67: 140505.5956 | P67: 75679.26225
G68: 61 | H68: 66.8965607 | I68: 4475.149834 | J68: 4080.690203 | K68: 32.85588045 | L68: 2197.945401 | M68: 5089.254633 | N68: 430604.8601 | O68: 144566.3665 | P68: 77866.47866
G69: 62 | H69: 66.45286679 | I69: 4415.983504 | J69: 4120.077741 | K69: 33.39450144 | L69: 2219.160356 | M69: 5155.929347 | N69: 435050.4268 | O69: 148666.7505 | P69: 80075.03154
G70: 63 | H70: 66.01646661 | I70: 4358.173864 | J70: 4159.037397 | K70: 33.93312244 | L70: 2240.144845 | M70: 5222.164014 | N70: 439437.5055 | O70: 152806.308 | P70: 82304.68414
G71: 64 | H71: 65.5873754 | I71: 4301.703812 | J71: 4197.592026 | K71: 34.47174343 | L71: 2260.911177 | M71: 5287.965935 | N71: 443767.4443 | O71: 156984.6227 | P71: 84555.21215
G72: 65 | H72: =-3.15129887387666E-12*G72^6 + 3.2808723217587E-09*G72^5 - 1.19622988882517E-06*G72^4 + 0.000188816450149787*G72^3 - 0.0110035490609448*G72^2 - 0.337735514676751*G72 + 99.5390387932748 -> 65.16559995 | I72: =H72^2 -> 4246.555417 | J72: =H72*G72 -> 4235.763997 | K72: =-1.270549421E-21*G72^6 - 3.25260651746E-19*G72^5 + 1.38777878078145E-16*G72^4 - 8.17124146124115E-14*G72^3 - 4.54747350886464E-13*G72^2 + 0.538620996841928*G72 - 3.41635313816369E-07 -> 35.01036443 | L72: =H72*K72 -> 2281.471403 | M72: 5353.342422 | N72: 448041.574 | O72: 161201.3007 | P72: 86826.40344
G73: =G72+G$5 -> 66 | H73: 64.75113892 | I73: 4192.709991 | J73: 4273.575169 | K73: 35.54898543 | L73: 2301.837294 | M73: =M72+0.5*(H73+H72)*G$5 -> 5418.300792 | N73: =N72+0.5*(I73+I72)*G$5 -> 452261.2067 | O73: =O72+0.5*(J73+J72)*G$5 -> 165455.9703 | P73: =P72+0.5*(L73+L72)*G$5 -> 89118.05779
G74: 67 | H74: 64.34398303 | I74: 4140.148153 | J74: 4311.046863 | K74: 36.08760642 | L74: 2322.020335 | M74: 5482.848353 | N74: 456427.6357 | O74: 169748.2813 | P74: 91429.98661
G75: 68 | H75: 63.94411537 | I75: 4088.84989 | J75: 4348.199845 | K75: 36.62622742 | L75: 2342.031712 | M75: 5546.992402 | N75: 460542.1348 | O75: 174077.9047 | P75: 93762.01263
G76: 69 | H76: 63.55151157 | I76: 4038.794622 | J76: 4385.054298 | K76: 37.16484841 | L76: 2361.882294 | M76: 5610.740215 | N76: 464605.957 | O76: 178444.5318 | P76: 96113.96963
G77: 70 | H77: 63.16614009 | I77: 3989.961254 | J77: 4421.629806 | K77: 37.70346941 | L77: 2381.582631 | M77: 5674.099041 | N77: 468620.3349 | O77: 182847.8738 | P77: 98485.70209
G78: 71 | H78: 62.78796245 | I78: 3942.328228 | J78: 4457.945334 | K78: 38.24209041 | L78: 2401.142936 | M78: 5737.076092 | N78: 472586.4797 | O78: 187287.6614 | P78: 100877.0649
G79: 72 | H79: 62.41693345 | I79: 3895.873581 | J79: 4494.019208 | K79: 38.7807114 | L79: 2420.573083 | M79: 5799.67854 | N79: 476505.5806 | O79: 191763.6437 | P79: 103287.9229
G80: 73 | H80: 62.05300142 | I80: 3850.574986 | J80: 4529.869104 | K80: 39.3193324 | L80: 2439.882589 | M80: 5861.913508 | N80: 480378.8049 | O80: 196275.5878 | P80: 105718.1507
G81: 74 | H81: 61.69610846 | I81: 3806.409799 | J81: 4565.512026 | K81: 39.85795339 | L81: 2459.080615 | M81: 5923.788063 | N81: 484207.2973 | O81: 200823.2784 | P81: 108167.6323
G82: 75 | H82: 61.34619062 | I82: 3763.355104 | J82: 4600.964297 | K82: 40.39657439 | L82: 2478.175953 | M82: 5985.309212 | N82: 487992.1797 | O82: 205406.5165 | P82: 110636.2606
G83: 76 | H83: 61.00317819 | I83: 3721.38775 | J83: 4636.241543 | K83: 40.93519538 | L83: 2497.177018 | M83: 6046.483897 | N83: 491734.5511 | O83: 210025.1195 | P83: 113123.9371
G84: 77 | H84: 60.6669959 | I84: 3680.484392 | J84: 4671.358684 | K84: 41.47381638 | L84: 2516.091848 | M84: 6107.318984 | N84: 495435.4872 | O84: 214678.9196 | P84: 115630.5715
G85: 78 | H85: 60.33756311 | I85: 3640.621522 | J85: 4706.329923 | K85: 42.01243737 | L85: 2534.928092 | M85: 6167.821263 | N85: 499096.0402 | O85: 219367.7639 | P85: 118156.0815
G86: 79 | H86: 60.01479409 | I86: 3601.77551 | J86: 4741.168733 | K86: 42.55105837 | L86: 2553.693006 | M86: 6227.997442 | N86: 502717.2387 | O86: 224091.5132 | P86: 120700.392
G87: 80 | H87: 59.69859819 | I87: 3563.922626 | J87: 4775.887855 | K87: 43.08967937 | L87: 2572.393455 | M87: 6287.854138 | N87: 506300.0878 | O87: 228850.0415 | P87: 123263.4353
G88: 81 | H88: 59.38888008 | I88: 3527.039077 | J88: 4810.499286 | K88: 43.62830036 | L88: 2591.035898 | M88: 6347.397877 | N88: 509845.5686 | O88: 233643.2351 | P88: 125845.15
G89: 82 | H89: 59.08553994 | I89: 3491.10103 | J89: 4845.014275 | K89: 44.16692136 | L89: 2609.626396 | M89: 6406.635087 | N89: 513354.6387 | O89: 238470.9919 | P89: 128445.4811
G90: 83 | H90: 58.78847371 | I90: 3456.084641 | J90: 4879.443318 | K90: 44.70554235 | L90: 2628.170601 | M90: 6465.572094 | N90: 516828.2315 | O90: 243333.2207 | P90: 131064.3796
G91: 84 | H91: 58.49757327 | I91: 3421.966078 | J91: 4913.796154 | K91: 45.24416335 | L91: 2646.67376 | M91: 6524.215117 | N91: 520267.2569 | O91: 248229.8404 | P91: 133701.8018
G92: 85 | H92: 58.21272663 | I92: 3388.721542 | J92: 4948.081764 | K92: 45.78278434 | L92: 2665.140709 | M92: 6582.570267 | N92: 523672.6007 | O92: 253160.7793 | P92: 136357.709
G93: 86 | H93: 57.93381819 | I93: 3356.32729 | J93: 4982.308365 | K93: 46.32140534 | L93: 2683.575875 | M93: 6640.64354 | N93: 527045.1251 | O93: 258125.9744 | P93: 139032.0673
G94: 87 | H94: 57.66072889 | I94: 3324.759656 | J94: 5016.483413 | K94: 46.86002633 | L94: 2701.983274 | M94: 6698.440813 | N94: 530385.6686 | O94: 263125.3703 | P94: 141724.8469
G95: 88 | H95: 57.39333642 | I95: 3293.995066 | J95: 5050.613605 | K95: 47.39864733 | L95: 2720.366512 | M95: 6755.967846 | N95: 533695.0459 | O95: 268158.9188 | P95: 144436.0218
G96: 89 | H96: 57.13151545 | I96: 3264.010058 | J96: 5084.704875 | K96: 47.93726832 | L96: 2738.728786 | M96: 6813.230272 | N96: 536974.0485 | O96: 273226.578 | P96: 147165.5694
G97: 90 | H97: 56.87513778 | I97: 3234.781297 | J97: 5118.7624 | K97: 48.47588932 | L97: 2757.072884 | M97: 6870.233599 | N97: 540223.4442 | O97: 278328.3117 | P97: 149913.4703
G98: 91 | H98: 56.62407256 | I98: 3206.285593 | J98: 5152.790603 | K98: 49.01451031 | L98: 2775.401188 | M98: 6926.983204 | N98: 543443.9776 | O98: 283464.0882 | P98: 152679.7073
G99: 92 | H99: 56.37818648 | I99: 3178.49991 | J99: 5186.793156 | K99: 49.55313131 | L99: 2793.715677 | M99: 6983.484333 | N99: 546636.3704 | O99: 288633.8801 | P99: 155464.2657
G100: 93 | H100: 56.13734394 | I100: 3151.401384 | J100: 5220.772986 | K100: 50.0917523 | L100: 2812.017927 | M100: 7039.742098 | N100: 549801.321 | O100: 293837.6631 | P100: 158267.1325
G101: 94 | H101: 55.90140726 | I101: 3124.967333 | J101: 5254.732282 | K101: 50.6303733 | L101: 2830.309117 | M101: 7095.761474 | N101: 552939.5054 | O101: 299075.4158 | P101: 161088.2961
G102: 95 | H102: 55.67023684 | I102: 3099.17527 | J102: 5288.6725 | K102: 51.16899429 | L102: 2848.590031 | M102: 7151.547296 | N102: 556051.5767 | O102: 304347.1182 | P102: 163927.7456
G103: 96 | H103: 55.44369139 | I103: 3074.002915 | J103: 5322.594373 | K103: 51.70761529 | L103: 2866.861064 | M103: 7207.10426 | N103: 559138.1658 | O103: 309652.7516 | P103: 166785.4712
G104: 97 | H104: 55.22162802 | I104: 3049.428201 | J104: 5356.497918 | K104: 52.24623628 | L104: 2885.122225 | M104: 7262.43692 | N104: 562199.8813 | O104: 314992.2977 | P104: 169661.4628
G105: 98 | H105: 55.00390251 | I105: 3025.429291 | J105: 5390.382446 | K105: 52.78485728 | L105: 2903.373144 | M105: 7317.549685 | N105: 565237.3101 | O105: 320365.7379 | P105: 172555.7105
G106: 99 | H106: 54.79036943 | I106: 3001.984582 | J106: 5424.246573 | K106: 53.32347827 | L106: 2921.613074 | M106: 7372.446821 | N106: 568251.017 | O106: 325773.0524 | P106: 175468.2036
G107: 100 | H107: 54.58088233 | I107: 2979.072716 | J107: 5458.088233 | K107: 53.86209927 | L107: 2939.840902 | M107: 7427.132447 | N107: 571241.5456 | O107: 331214.2198 | P107: 178398.9306
G108: 101 | H108: 54.3752939 | I108: 2956.672587 | J108: 5491.904684 | K108: 54.40072026 | L108: 2958.055153 | M108: 7481.610535 | N108: 574209.4183 | O108: 336689.2163 | P108: 181347.8786
G109: 102 | H109: 54.17345617 | I109: 2934.763354 | J109: 5525.69253 | K109: 54.93934125 | L109: 2976.253996 | M109: 7535.88491 | N109: 577155.1363 | O109: 342198.0149 | P109: 184315.0332
G110: 103 | H110: 53.97522063 | I110: 2913.324442 | J110: 5559.447725 | K110: 55.47796225 | L110: 2994.435253 | M110: 7589.959249 | N110: 580079.1802 | O110: 347740.585 | P110: 187300.3778
G111: 104 | H111: 53.78043842 | I111: 2892.335556 | J111: 5593.165595 | K111: 56.01658324 | L111: 3012.596405 | M111: 7643.837078 | N111: 582982.0102 | O111: 353316.8917 | P111: 190303.8937
G112: 105 | H112: 53.58896048 | I112: 2871.776685 | J112: 5626.84085 | K112: 56.55520424 | L112: 3030.734605 | M112: 7697.521778 | N112: 585864.0663 | O112: 358926.8949 | P112: 193325.5592
G113: 106 | H113: 53.40063773 | I113: 2851.62811 | J113: 5660.467599 | K113: 57.09382523 | L113: 3048.846678 | M113: 7751.016577 | N113: 588725.7687 | O113: 364570.5491 | P113: 196365.3498
G114: 107 | H114: 53.2153212 | I114: 2831.87041 | J114: 5694.039368 | K114: 57.63244623 | L114: 3066.929137 | M114: 7804.324556 | N114: 591567.5179 | O114: 370247.8026 | P114: 199423.2377
G115: 108 | H115: 53.0328622 | I115: 2812.484473 | J115: 5727.549117 | K115: 58.17106722 | L115: 3084.978192 | M115: 7857.448648 | N115: 594389.6954 | O115: 375958.5969 | P115: 202499.1914
G116: 109 | H116: 52.85311246 | I116: 2793.451497 | J116: 5760.989258 | K116: 58.70968822 | L116: 3102.989754 | M116: 7910.391635 | N116: 597192.6634 | O116: 381702.8661 | P116: 205593.1753
G117: 110 | H117: 52.67592431 | I117: 2774.753002 | J117: 5794.351674 | K117: 59.24830921 | L117: 3120.959452 | M117: 7963.156153 | N117: 599976.7656 | O117: 387480.5365 | P117: 208705.1499
G118: 111 | H118: 52.50115079 | I118: 2756.370834 | J118: 5827.627737 | K118: 59.7869302 | L118: 3138.882638 | M118: 8015.744691 | N118: 602742.3275 | O118: 393291.5262 | P118: 211835.071
G119: 112 | H119: 52.32864579 | I119: 2738.28717 | J119: 5860.808329 | K119: 60.3255512 | L119: 3156.754401 | M119: 8068.159589 | N119: 605489.6565 | O119: 399135.7443 | P119: 214982.8895
G120: 113 | H120: 52.15826426 | I120: 2720.48453 | J120: 5893.883861 | K120: 60.86417219 | L120: 3174.569577 | M120: 8120.403044 | N120: 608219.0424 | O120: 405013.0904 | P120: 218148.5515
G121: 114 | H121: 51.98986226 | I121: 2702.945778 | J121: 5926.844297 | K121: 61.40279319 | L121: 3192.32276 | M121: 8172.477108 | N121: 610930.7575 | O121: 410923.4544 | P121: 221331.9977
G122: 115 | H122: 51.82329717 | I122: 2685.654129 | J122: 5959.679174 | K122: 61.94141418 | L122: 3210.008314 | M122: 8224.383687 | N122: 613625.0575 | O122: 416866.7162 | P122: 224533.1632
G123: 116 | H123: 51.65842779 | I123: 2668.593161 | J123: 5992.377623 | K123: 62.48003517 | L123: 3227.620385 | M123: 8276.12455 | N123: 616302.1811 | O123: 422842.7446 | P123: 227751.9776
G124: 117 | H124: 51.49511448 | I124: 2651.746815 | J124: 6024.928394 | K124: 63.01865617 | L124: 3245.152914 | M124: 8327.701321 | N124: 618962.3511 | O124: 428851.3976 | P124: 230988.3642
G125: 118 | H125: 51.3332193 | I125: 2635.099404 | J125: 6057.319877 | K125: 63.55727716 | L125: 3262.599647 | M125: 8379.115488 | N125: 621605.7742 | O125: 434892.5217 | P125: 234242.2405
G126: 119 | H126: 51.17260613 | I126: 2618.635618 | J126: 6089.54013 | K126: 64.09589815 | L126: 3279.954151 | M126: 8430.368401 | N126: 624232.6417 | O126: 440965.9517 | P126: 237513.5174
G127: 120 | H127: 51.01314081 | I127: 2602.340535 | J127: 6121.576897 | K127: 64.63451915 | L127: 3297.209826 | M127: 8481.461274 | N127: 626843.1298 | O127: 447071.5102 | P127: 240802.0994
G128: 121 | H128: 50.85469123 | I128: 2586.199621 | J128: 6153.417639 | K128: 65.17314014 | L128: 3314.359919 | M128: 8532.39519 | N128: 629437.3999 | O128: 453209.0075 | P128: 244107.8842
G129: 122 | H129: 50.69712752 | I129: 2570.198739 | J129: 6185.049557 | K129: 65.71176114 | L129: 3331.397534 | M129: 8583.171099 | N129: 632015.5991 | O129: 459378.2411 | P129: 247430.763
G130: 123 | H130: 50.54032209 | I130: 2554.324157 | J130: 6216.459617 | K130: 66.25038213 | L130: 3348.315651 | M130: 8633.789824 | N130: 634577.8605 | O130: 465578.9957 | P130: 250770.6196
G131: 124 | H131: 50.3841498 | I131: 2538.562552 | J131: 6247.634576 | K131: 66.78900312 | L131: 3365.107139 | M131: 8684.25206 | N131: 637124.3039 | O131: 471811.0428 | P131: 254127.331
G132: 125 | H132: 50.22848808 | I132: 2522.901015 | J132: 6278.56101 | K132: 67.32762412 | L132: 3381.764765 | M132: 8734.558379 | N132: 639655.0357 | O132: 478074.1406 | P132: 257500.7669
G133: 126 | H133: 50.07321699 | I133: 2507.32706 | J133: 6309.225341 | K133: 67.86624511 | L133: 3398.281218 | M133: 8784.709232 | N133: 642170.1497 | O133: 484368.0337 | P133: 260890.7899
G134: 127 | H134: 49.9182194 | I134: 2491.828628 | J134: 6339.613864 | K134: 68.4048661 | L134: 3414.649114 | M134: 8834.70495 | N134: 644669.7275 | O134: 490692.4533 | P134: 264297.2551
G135: 128 | H135: 49.76338105 | I135: 2476.394094 | J135: 6369.712775 | K135: 68.9434871 | L135: 3430.86102 | M135: 8884.54575 | N135: 647153.8389 | O135: 497047.1167 | P135: 267720.0101
G136: 129 | H136: =-3.15129887387666E-12*G136^6 + 3.2808723217587E-09*G136^5 - 1.19622988882517E-06*G136^4 + 0.000188816450149787*G136^3 - 0.0110035490609448*G136^2 - 0.337735514676751*G136 + 99.5390387932748 -> 49.60859068 | I136: =H136^2 -> 2461.012269 | J136: =H136*G136 -> 6399.508198 | K136: =-1.270549421E-21*G136^6 - 3.25260651746E-19*G136^5 + 1.38777878078145E-16*G136^4 - 8.17124146124115E-14*G136^3 - 4.54747350886464E-13*G136^2 + 0.538620996841928*G136 - 3.41635313816369E-07 -> 69.48210809 | L136: =H136*K136 -> 3446.90946 | M136: 8934.231736 | N136: 649622.5421 | O136: 503431.7272 | P136: 271158.8954
G137: =G136+G$5 -> 130 | H137: 49.45374012 | I137: 2445.672412 | J137: 6428.986215 | K137: 70.02072908 | L137: 3462.786939 | M137: =M136+0.5*(H137+H136)*G$5 -> 8983.762901 | N137: =N136+0.5*(I137+I136)*G$5 -> 652075.8844 | O137: =O136+0.5*(J137+J136)*G$5 -> 509845.9744 | P137: =P136+0.5*(L137+L136)*G$5 -> 274613.7436
G138: 131 | H138: 49.2987244 | I138: 2430.364227 | J138: 6458.132896 | K138: 70.55935008 | L138: 3478.485953 | M138: 9033.139134 | N138: 654513.9028 | O138: 516289.5339 | P138: 278084.38
G139: 132 | H139: 49.14344185 | I139: 2415.077877 | J139: 6486.934324 | K139: 71.09797107 | L139: 3493.999007 | M139: 9082.360217 | N139: 656936.6238 | O139: 522762.0675 | P139: 281570.6225
G140: 133 | H140: 48.9877942 | I140: 2399.803981 | J140: 6515.376629 | K140: 71.63659206 | L140: 3509.318629 | M140: 9131.425835 | N140: 659344.0647 | O140: 529263.223 | P140: 285072.2813
G141: 134 | H141: 48.83168668 | I141: 2384.533624 | J141: 6543.446015 | K141: 72.17521305 | L141: 3524.43739 | M141: 9180.335575 | N141: 661736.2335 | O141: 535792.6343 | P141: 288589.1593
G142: 135 | H142: 48.67502809 | I142: 2369.25836 | J142: 6571.128792 | K142: 72.71383405 | L142: 3539.347915 | M142: 9229.088933 | N142: 664113.1295 | O142: 542349.9217 | P142: 292121.052
G143: 136 | H143: 48.51773091 | I143: 2353.970213 | J143: 6598.411404 | K143: 73.25245504 | L143: 3554.042902 | M143: 9277.685312 | N143: 666474.7438 | O143: 548934.6918 | P143: 295667.7474
G144: 137 | H144: 48.35971139 | I144: 2338.661686 | J144: 6625.28046 | K144: 73.79107603 | L144: 3568.51514 | M144: 9326.124033 | N144: 668821.0598 | O144: 555546.5378 | P144: 299229.0264
G145: 138 | H145: 48.20088962 | I145: 2323.32576 | J145: 6651.722768 | K145: 74.32969702 | L145: 3582.757522 | M145: 9374.404334 | N145: 671152.0535 | O145: 562185.0394 | P145: 302804.6627
G146: 139 | H146: 48.04118965 | I146: 2307.955903 | J146: 6677.725361 | K146: 74.86831802 | L146: 3596.763064 | M146: 9422.525373 | N146: 673467.6943 | O146: 568849.7634 | P146: 306394.423
G147: 140 | H147: 47.8805395 | I147: 2292.546063 | J147: 6703.275531 | K147: 75.40693901 | L147: 3610.524922 | M147: 9470.486238 | N147: 675767.9453 | O147: 575540.2639 | P147: 309998.067
G148: 141 | H148: 47.71887134 | I148: 2277.090682 | J148: 6728.36086 | K148: 75.94556 | L148: 3624.036407 | M148: 9518.285943 | N148: 678052.7637 | O148: 582256.0821 | P148: 313615.3477
G149: 142 | H149: 47.55612148 | I149: 2261.584691 | J149: 6752.969251 | K149: 76.48418099 | L149: 3637.291003 | M149: 9565.92344 | N149: 680322.1014 | O149: 588996.7471 | P149: 317246.0114
G150: 143 | H150: 47.39223049 | I150: 2246.023511 | J150: 6777.08896 | K150: 77.02280199 | L150: 3650.282385 | M150: 9613.397616 | N150: 682575.9055 | O150: 595761.7762 | P150: 320889.7981
G151: 144 | H151: 47.22714325 | I151: 2230.40306 | J151: 6800.708628 | K151: 77.56142298 | L151: 3663.004434 | M151: 9660.707303 | N151: 684814.1187 | O151: 602550.675 | P151: 324546.4415
G152: 145 | H152: 47.06080904 | I152: 2214.719747 | J152: 6823.817311 | K152: 78.10004397 | L152: 3675.451255 | M152: 9707.851279 | N152: 687036.6801 | O152: 609362.938 | P152: 328215.6693
G153: 146 | H153: 46.8931816 | I153: 2198.97048 | J153: 6846.404513 | K153: 78.63866496 | L153: 3687.617197 | M153: 9754.828274 | N153: 689243.5253 | O153: 616198.0489 | P153: 331897.2036
G154: 147 | H154: 46.72421919 | I154: 2183.152659 | J154: 6868.46022 | K154: 79.17728595 | L154: 3699.496864 | M154: 9801.636974 | N154: 691434.5868 | O154: 623055.4813 | P154: 335590.7606
G155: 148 | H155: 46.55388466 | I155: 2167.264177 | J155: 6889.974929 | K155: 79.71590695 | L155: 3711.085137 | M155: 9848.276026 | N155: 693609.7952 | O155: 629934.6989 | P155: 339296.0516
G156: 149 | H156: 46.38214551 | I156: 2151.303422 | J156: 6910.939681 | K156: 80.25452794 | L156: 3722.377193 | M156: 9894.744041 | N156: 695769.079 | O156: 636835.1562 | P156: 343012.7828
G157: 150 | H157: 46.20897396 | I157: 2135.269274 | J157: 6931.346093 | K157: 80.79314893 | L157: 3733.368515 | M157: 9941.039601 | N157: 697912.3654 | O157: 643756.2991 | P157: 346740.6556
G158: 151 | H158: 46.03434697 | I158: 2119.161101 | J158: 6951.186393 | K158: 81.33176992 | L158: 3744.054916 | M158: 9987.161262 | N158: 700039.5806 | O158: 650697.5653 | P158: 350479.3673
G159: 152 | H159: 45.85824635 | I159: 2102.978758 | J159: 6970.453445 | K159: 81.87039091 | L159: 3754.432555 | M159: 10033.10756 | N159: 702150.6505 | O159: 657658.3852 | P159: 354228.6111
G160: 153 | H160: 45.68065877 | I160: 2086.722585 | J160: 6989.140791 | K160: 82.4090119 | L160: 3764.497952 | M160: 10078.87701 | N160: 704245.5012 | O160: 664638.1823 | P160: 357988.0763
G161: 154 | H161: 45.5015758 | I161: 2070.393401 | J161: 7007.242674 | K161: 82.9476329 | L161: 3774.248006 | M161: 10124.46813 | N161: 706324.0592 | O161: 671636.3741 | P161: 361757.4493
G162: 155 | H162: 45.32099403 | I162: 2053.9925 | J162: 7024.754074 | K162: 83.48625389 | L162: 3783.680014 | M162: 10169.87941 | N162: 708386.2521 | O162: 678652.3724 | P162: 365536.4133
G163: 156 | H163: 45.13891502 | I163: 2037.521649 | J163: 7041.670743 | K163: 84.02487488 | L163: 3792.791686 | M163: 10215.10937 | N163: 710432.0092 | O163: 685685.5848 | P163: 369324.6492
G164: 157 | H164: 44.9553454 | I164: 2020.98308 | J164: 7057.989228 | K164: 84.56349587 | L164: 3801.581165 | M164: 10260.1565 | N164: 712461.2616 | O164: 692735.4148 | P164: 373121.8356
G165: 158 | H165: 44.77029692 | I165: 2004.379487 | J165: 7073.706914 | K165: 85.10211686 | L165: 3810.047041 | M165: 10305.01932 | N165: 714473.9429 | O165: 699801.2629 | P165: 376927.6497
G166: 159 | H166: 44.58378645 | I166: 1987.714014 | J166: 7088.822046 | K166: 85.64073785 | L166: 3818.188368 | M166: 10349.69636 | N166: 716469.9896 | O166: 706882.5274 | P166: 380741.7674
G167: 160 | H167: 44.39583604 | I167: 1970.990257 | J167: 7103.333766 | K167: 86.17935884 | L167: 3826.004685 | M167: 10394.18617 | N167: 718449.3417 | O167: 713978.6053 | P167: 384563.8639
G168: 161 | H168: 44.20647293 | I168: 1954.212249 | J168: 7117.242142 | K168: 86.71797983 | L168: 3833.496028 | M168: 10438.48733 | N168: 720411.943 | O168: 721088.8932 | P168: 388393.6143
G169: 162 | H169: 44.01572964 | I169: 1937.384456 | J169: 7130.548202 | K169: 87.25660082 | L169: 3840.662951 | M169: 10482.59843 | N169: 722357.7413 | O169: 728212.7884 | P169: 392230.6938
G170: 163 | H170: 43.82364392 | I170: 1920.511767 | J170: 7143.25396 | K170: 87.79522181 | L170: 3847.506539 | M170: 10526.51811 | N170: 724286.6895 | O170: 735349.6895 | P170: 396074.7785
G171: 164 | H171: 43.63025885 | I171: 1903.599487 | J171: 7155.362451 | K171: 88.3338428 | L171: 3854.028427 | M171: 10570.24507 | N171: 726198.7451 | O171: 742498.9977 | P171: 399925.546
G172: 165 | H172: 43.4356228 | I172: 1886.653328 | J172: 7166.877763 | K172: 88.8724638 | L172: 3860.230815 | M172: 10613.77801 | N172: 728093.8715 | O172: 749660.1178 | P172: 403782.6756
G173: 166 | H173: 43.23978952 | I173: 1869.679398 | J173: 7177.80506 | K173: 89.41108479 | L173: 3866.116487 | M173: 10657.11571 | N173: 729972.0379 | O173: 756832.4592 | P173: 407645.8493
G174: 167 | H174: 43.04281809 | I174: 1852.684189 | J174: 7188.150621 | K174: 89.94970578 | L174: 3871.688823 | M174: 10700.25702 | N174: 731833.2196 | O174: 764015.4371 | P174: 411514.7519
G175: 168 | H175: 42.84477301 | I175: 1835.674574 | J175: 7197.921865 | K175: 90.48832677 | L175: 3876.95182 | M175: 10743.20081 | N175: 733677.399 | O175: 771208.4733 | P175: 415389.0722
G176: 169 | H176: 42.64572414 | I176: 1818.657787 | J176: 7207.127379 | K176: 91.02694776 | L176: 3881.910103 | M176: 10785.94606 | N176: 735504.5652 | O176: 778410.9979 | P176: 419268.5032
G177: 170 | H177: 42.44574678 | I177: 1801.64142 | J177: 7215.776953 | K177: 91.56556875 | L177: 3886.568945 | M177: 10828.4918 | N177: 737314.7148 | O177: 785622.4501 | P177: 423152.7427
G178: 171 | H178: 42.24492166 | I178: 1784.633406 | J178: 7223.881605 | K178: 92.10418974 | L178: 3890.93428 | M178: 10870.83713 | N178: 739107.8522 | O178: 792842.2794 | P178: 427041.4943
G179: 172 | H179: 42.04333493 | I179: 1767.642012 | J179: 7231.453608 | K179: 92.64281073 | L179: 3895.01272 | M179: 10912.98126 | N179: 740883.9899 | O179: 800069.947 | P179: 430934.4678
G180: 173 | H180: 41.84107817 | I180: 1750.675823 | J180: 7238.506524 | K180: 93.18143172 | L180: 3898.811569 | M180: 10954.92347 | N180: 742643.1489 | O180: 807304.927 | P180: 434831.38
G181: 174 | H181: 41.63824843 | I181: 1733.743733 | J181: 7245.055227 | K181: 93.7200527 | L181: 3902.338838 | M181: 10996.66313 | N181: 744385.3586 | O181: 814546.7079 | P181: 438731.9552
G182: 175 | H182: 41.4349482 | I182: 1716.854932 | J182: 7251.115934 | K182: 94.25867369 | L182: 3905.603261 | M182: 11038.19973 | N182: 746110.658 | O182: 821794.7935 | P182: 442635.9262
G183: 176 | H183: 41.23128539 | I183: 1700.018895 | J183: 7256.706229 | K183: 94.79729468 | L183: 3908.614312 | M183: 11079.53284 | N183: 747819.0949 | O183: 829048.7046 | P183: 446543.035
G184: 177 | H184: 41.02737341 | I184: 1683.245369 | J184: 7261.845093 | K184: 95.33591567 | L184: 3911.382211 | M184: 11120.66217 | N184: 749510.727 | O184: 836307.9802 | P184: 450453.0333
G185: 178 | H185: 40.82333106 | I185: 1666.544359 | J185: 7266.552928 | K185: 95.87453666 | L185: 3913.91795 | M185: 11161.58753 | N185: 751185.6219 | O185: 843572.1793 | P185: 454365.6834
G186: 179 | H186: 40.61928259 | I186: 1649.926118 | J186: 7270.851584 | K186: 96.41315765 | L186: 3916.233296 | M186: 11202.30883 | N186: 752843.8571 | O186: 850840.8815 | P186: 458280.759
G187: 180 | H187: 40.4153577 | I187: 1633.401138 | J187: 7274.764385 | K187: 96.95177864 | L187: 3918.340813 | M187: 11242.82615 | N187: 754485.5207 | O187: 858113.6895 | P187: 462198.046
G188: 181 | H188: 40.21169146 | I188: 1616.98013 | J188: 7278.316154 | K188: 97.49039963 | L188: 3920.25387 | M188: 11283.13968 | N188: 756110.7114 | O188: 865390.2298 | P188: 466117.3434
G189: 182 | H189: 40.00842438 | I189: 1600.674021 | J189: 7281.533236 | K189: 98.02902062 | L189: 3921.986658 | M189: 11323.24973 | N189: 757719.5384 | O189: 872670.1545 | P189: 470038.4637
G190: 183 | H190: 39.80570232 | I190: 1584.493937 | J190: 7284.443525 | K190: 98.56764161 | L190: 3923.5542 | M190: 11363.1568 | N190: 759312.1224 | O190: 879953.1428 | P190: 473961.2341
G191: 184 | H191: 39.60367654 | I191: 1568.451195 | J191: 7287.076483 | K191: 99.10626259 | L191: 3924.972367 | M191: 11402.86149 | N191: 760888.595 | O191: 887238.9028 | P191: 477885.4974
G192: 185 | H192: 39.40250362 | I192: 1552.557292 | J192: 7289.46317 | K192: 99.64488358 | L192: 3926.257886 | M192: 11442.36458 | N192: 762449.0992 | O192: 894527.1727 | P192: 481811.1125
G193: 186 | H193: 39.20234548 | I193: 1536.823891 | J193: 7291.636259 | K193: 100.1835046 | L193: 3927.428357 | M193: 11481.667 | N193: 763993.7898 | O193: 901817.7224 | P193: 485737.9556
G194: 187 | H194: 39.00336932 | I194: 1521.262818 | J194: 7293.630063 | K194: 100.7221256 | L194: 3928.502262 | M194: 11520.76986 | N194: 765522.8332 | O194: 909110.3555 | P194: 489665.9209
G195: 188 | H195: 38.80574763 | I195: 1505.886049 | J195: 7295.480554 | K195: 101.2607465 | L195: 3929.498975 | M195: 11559.67442 | N195: 767036.4076 | O195: 916404.9109 | P195: 493594.9215
G196: 189 | H196: 38.60965813 | I196: 1490.705701 | J196: 7297.225386 | K196: 101.7993675 | L196: 3930.438778 | M196: 11598.38212 | N196: 768534.7035 | O196: 923701.2638 | P196: 497524.8904
G197: 190 | H197: 38.41528375 | I197: 1475.734026 | J197: 7298.903913 | K197: 102.3379885 | L197: 3931.342868 | M197: 11636.89459 | N197: 770017.9234 | O197: 930999.3285 | P197: 501455.7812
G198: 191 | H198: 38.22281261 | I198: 1460.983404 | J198: 7300.557209 | K198: 102.8766095 | L198: 3932.233368 | M198: 11675.21364 | N198: 771486.2821 | O198: 938299.059 | P198: 505387.5694
G199: 192 | H199: 38.03243796 | I199: 1446.466337 | J199: 7302.228088 | K199: 103.4152305 | L199: 3933.133338 | M199: 11713.34127 | N199: 772940.0069 | O199: 945600.4517 | P199: 509320.2527
G200: 193 | H200: =-3.15129887387666E-12*G200^6 + 3.2808723217587E-09*G200^5 - 1.19622988882517E-06*G200^4 + 0.000188816450149787*G200^3 - 0.0110035490609448*G200^2 - 0.337735514676751*G200 + 99.5390387932748 -> 37.84435814 | I200: =H200^2 -> 1432.195443 | J200: =H200*G200 -> 7303.96112 | K200: =-1.270549421E-21*G200^6 - 3.25260651746E-19*G200^5 + 1.38777878078145E-16*G200^4 - 8.17124146124115E-14*G200^3 - 4.54747350886464E-13*G200^2 + 0.538620996841928*G200 - 3.41635313816369E-07 -> 103.9538515 | L200: =H200*K200 -> 3934.066785 | M200: 11751.27966 | N200: 774379.3378 | O200: 952903.5463 | P200: 513253.8528
G201: =G200+G$5 -> 194 | H201: 37.65877656 | I201: 1418.183452 | J201: 7305.802652 | K201: 104.4924725 | L201: 3935.058673 | M201: =M200+0.5*(H201+H200)*G$5 -> 11789.03123 | N201: =N200+0.5*(I201+I200)*G$5 -> 775804.5273 | O201: =O200+0.5*(J201+J200)*G$5 -> 960208.4282 | P201: =P200+0.5*(L201+L200)*G$5 -> 517188.4155
G202: 195 | H202: 37.47590165 | I202: 1404.443205 | J202: 7307.800823 | K202: 105.0310935 | L202: 3936.134929 | M202: 11826.59857 | N202: 777215.8406 | O202: 967515.2299 | P202: 521124.0123
G203: 196 | H203: 37.29594682 | I203: 1390.98765 | J203: 7310.005578 | K203: 105.5697144 | L203: 3937.322456 | M203: 11863.98449 | N203: 778613.556 | O203: 974824.1331 | P203: 525060.741
... 14 more rows
